[Event "***Titled Tuesday 3|2 Blitz"]
[Site "Chess.com"]
[Date "2017.02.07"]
[Round "8"]
[White "Alexander_Moskalenko"]
[Black "Noukii"]
[Result "1-0"]
[WhiteElo "2708"]
[BlackElo "2629"]
[TimeControl "180+2"]
[EndTime "14:59:27 PST"]
[Termination "Alexander_Moskalenko won by resignation"]

1. e4 {[%clk 0:03:02]} 1... e5 {[%clk 0:03:00.2]} 2. Nf3 {[%clk 0:03:02.2]} 2...
Nc6 {[%clk 0:03:01.8]} 3. Nc3 {[%clk 0:03:02.4]} 3... Nf6 {[%clk 0:03:02.9]} 4.
d4 {[%clk 0:03:00.1]} 4... exd4 {[%clk 0:03:03.6]} 5. Nxd4 {[%clk 0:03:02]} 5...
Bb4 {[%clk 0:03:03.9]} 6. Nxc6 {[%clk 0:03:03]} 6... bxc6 {[%clk 0:03:05.8]} 7.
Bd3 {[%clk 0:03:04.6]} 7... d5 {[%clk 0:03:07.1]} 8. exd5 {[%clk 0:03:05.3]}
8... cxd5 {[%clk 0:03:09]} 9. O-O {[%clk 0:03:06.8]} 9... O-O {[%clk 0:03:10.6]}
10. h3 {[%clk 0:03:07.4]} 10... c6 {[%clk 0:03:06.3]} 11. Qf3 {[%clk 0:03:08.5]}
11... Rb8 {[%clk 0:03:02.8]} 12. Bf4 {[%clk 0:03:05.9]} 12... Bd6 {[%clk
0:03:03.4]} 13. b3 {[%clk 0:03:07.4]} 13... Rb4 {[%clk 0:02:50.9]} 14. Ne2
{[%clk 0:03:05.6]} 14... Re8 {[%clk 0:02:46.4]} 15. c4 {[%clk 0:03:02.2]} 15...
Be6 {[%clk 0:02:30.8]} 16. Rad1 {[%clk 0:02:54.5]} 16... Bxf4 {[%clk 0:02:23]}
17. Nxf4 {[%clk 0:02:54.8]} 17... Qa5 {[%clk 0:02:21.2]} 18. Nxe6 {[%clk
0:02:47.3]} 18... Rxe6 {[%clk 0:02:12.8]} 19. Bf5 {[%clk 0:02:38.3]} 19... Re8
{[%clk 0:02:10.4]} 20. cxd5 {[%clk 0:02:39.5]} 20... cxd5 {[%clk 0:02:10.1]} 21.
Qc3 {[%clk 0:02:40.6]} 21... Qb6 {[%clk 0:02:06.3]} 22. Bc2 {[%clk 0:02:30.4]}
22... Rb5 {[%clk 0:01:39.7]} 23. Rfe1 {[%clk 0:02:30.4]} 23... Rxe1+ {[%clk
0:01:26.5]} 24. Rxe1 {[%clk 0:02:32.3]} 24... g6 {[%clk 0:01:27.9]} 25. Bd3
{[%clk 0:02:11.9]} 25... Rc5 {[%clk 0:01:28.9]} 26. Qb2 {[%clk 0:02:13.5]} 26...
a5 {[%clk 0:01:22.2]} 27. a3 {[%clk 0:02:09.5]} 27... Kg7 {[%clk 0:01:20.9]} 28.
b4 {[%clk 0:02:10.3]} 28... axb4 {[%clk 0:01:22.8]} 29. axb4 {[%clk 0:02:12.2]}
29... Rc8 {[%clk 0:01:21.2]} 30. b5 {[%clk 0:02:10.3]} 30... d4 {[%clk
0:01:22.3]} 31. Rc1 {[%clk 0:02:10.1]} 31... Rxc1+ {[%clk 0:01:14.1]} 32. Qxc1
{[%clk 0:02:12]} 32... Nd5 {[%clk 0:01:15.6]} 33. g3 {[%clk 0:02:08]} 33... Nc3
{[%clk 0:01:11.4]} 34. Qf4 {[%clk 0:02:01.5]} 34... Qc5 {[%clk 0:00:59.9]} 35.
Qb8 {[%clk 0:02:02.2]} 35... Na4 {[%clk 0:01:00]} 36. Qb7 {[%clk 0:01:55.6]}
36... Nb6 {[%clk 0:00:58.4]} 37. Kf1 {[%clk 0:01:49.3]} 37... Kf6 {[%clk
0:00:58.8]} 38. Qa7 {[%clk 0:01:43.7]} 38... Ke6 {[%clk 0:00:57]} 39. h4 {[%clk
0:01:42.6]} 39... h5 {[%clk 0:00:57.2]} 40. Kg2 {[%clk 0:01:40]} 40... Qd5+
{[%clk 0:00:57]} 41. Kg1 {[%clk 0:01:41.5]} 41... Qc5 {[%clk 0:00:51.7]} 42. Kh2
{[%clk 0:01:35.6]} 42... Kf6 {[%clk 0:00:47.2]} 43. Qb7 {[%clk 0:01:36.6]} 43...
Ke6 {[%clk 0:00:48.3]} 44. Bb1 {[%clk 0:01:34.4]} 44... d3 {[%clk 0:00:40.5]}
45. Qe4+ {[%clk 0:01:26.5]} 45... Kd6 {[%clk 0:00:33.8]} 46. Qxd3+ {[%clk
0:01:27.5]} 46... Nd5 {[%clk 0:00:33.1]} 47. Kg1 {[%clk 0:01:07.1]} 47... Kc7
{[%clk 0:00:33.4]} 48. Qb3 {[%clk 0:00:54.3]} 48... Kb6 {[%clk 0:00:31.3]} 49.
Be4 {[%clk 0:00:55.2]} 49... Nc3 {[%clk 0:00:32]} 50. Bf3 {[%clk 0:00:42.8]}
50... Qc7 {[%clk 0:00:18.3]} 51. Bc6 {[%clk 0:00:41.8]} 51... Qe5 {[%clk
0:00:17.3]} 52. Qxf7 {[%clk 0:00:38.9]} 52... Qe1+ {[%clk 0:00:18.1]} 53. Kg2
{[%clk 0:00:40.3]} 53... Ne2 {[%clk 0:00:20]} 54. Qb7+ {[%clk 0:00:39.4]} 54...
Ka5 {[%clk 0:00:21.1]} 55. Qa7+ {[%clk 0:00:34.9]} 55... Kb4 {[%clk 0:00:22.5]}
56. Qe7+ {[%clk 0:00:36.8]} 56... Ka5 {[%clk 0:00:22.9]} 57. Qa3+ {[%clk
0:00:37.2]} 57... Kb6 {[%clk 0:00:24.2]} 58. Qe3+ {[%clk 0:00:39.1]} 58... Kc7
{[%clk 0:00:25.6]} 59. Kf3 {[%clk 0:00:34]} 59... Ng1+ {[%clk 0:00:18.5]} 60.
Kf4 {[%clk 0:00:35.4]} 60... Nh3+ {[%clk 0:00:18.7]} 61. Ke5 {[%clk 0:00:31.4]}
61... Qa1+ {[%clk 0:00:19.6]} 62. Ke6 {[%clk 0:00:30.9]} 62... Qa2+ {[%clk
0:00:16.3]} 63. Bd5 {[%clk 0:00:30.9]} 63... Qa3 {[%clk 0:00:09.2]} 64. b6+
{[%clk 0:00:30.8]} 64... Kd8 {[%clk 0:00:07.2]} 65. Qxa3 {[%clk 0:00:32.7]} 1-0

[Event "***Titled Tuesday 3|2 Blitz"]
[Site "Chess.com"]
[Date "2017.02.07"]
[Round "8"]
[White "avto24"]
[Black "nihalsarin"]
[Result "0-1"]
[WhiteElo "2376"]
[BlackElo "2485"]
[TimeControl "180+2"]
[EndTime "14:59:33 PST"]
[Termination "nihalsarin won by resignation"]

1. e4 {[%clk 0:03:02]} 1... e5 {[%clk 0:03:00.1]} 2. Nf3 {[%clk 0:03:01.6]} 2...
Nc6 {[%clk 0:02:59.8]} 3. Bc4 {[%clk 0:03:02.2]} 3... Bc5 {[%clk 0:02:58.6]} 4.
c3 {[%clk 0:03:02.8]} 4... Nf6 {[%clk 0:02:59.7]} 5. d4 {[%clk 0:03:04.4]} 5...
exd4 {[%clk 0:03:00.6]} 6. cxd4 {[%clk 0:03:06.3]} 6... Bb4+ {[%clk 0:03:02.1]}
7. Bd2 {[%clk 0:03:07.5]} 7... Bxd2+ {[%clk 0:03:02.7]} 8. Nbxd2 {[%clk
0:03:09.4]} 8... d5 {[%clk 0:03:02.6]} 9. exd5 {[%clk 0:03:11.3]} 9... Nxd5
{[%clk 0:03:04.2]} 10. Qb3 {[%clk 0:03:12.9]} 10... Na5 {[%clk 0:03:01.8]} 11.
Qa4+ {[%clk 0:03:13.3]} 11... Nc6 {[%clk 0:03:03.1]} 12. Qb3 {[%clk 0:03:14.3]}
12... Na5 {[%clk 0:02:41.3]} 13. Qa4+ {[%clk 0:03:13.7]} 13... Nc6 {[%clk
0:02:42.5]} 14. Qa3 {[%clk 0:03:13.6]} 14... Qe7+ {[%clk 0:02:30.7]} 15. Qxe7+
{[%clk 0:03:14.4]} 15... Ncxe7 {[%clk 0:02:31.4]} 16. O-O {[%clk 0:03:15.7]}
16... f6 {[%clk 0:02:22.6]} 17. Rfe1 {[%clk 0:03:09.9]} 17... c6 {[%clk
0:02:03.9]} 18. Ne4 {[%clk 0:02:57.2]} 18... Kd8 {[%clk 0:01:53.7]} 19. Nd6
{[%clk 0:02:54.8]} 19... Kc7 {[%clk 0:01:50.5]} 20. Nxc8 {[%clk 0:02:43.5]}
20... Raxc8 {[%clk 0:01:48.1]} 21. Rac1 {[%clk 0:02:43.9]} 21... Kd7 {[%clk
0:01:36.7]} 22. h3 {[%clk 0:02:39.4]} 22... Rhe8 {[%clk 0:01:17.2]} 23. Bd3
{[%clk 0:02:37.4]} 23... h6 {[%clk 0:01:11.3]} 24. Nd2 {[%clk 0:02:36.9]} 24...
Nf4 {[%clk 0:01:03]} 25. Be4 {[%clk 0:02:34.1]} 25... Rcd8 {[%clk 0:00:42.7]}
26. Nb3 {[%clk 0:02:28.8]} 26... Kc7 {[%clk 0:00:38.2]} 27. Nc5 {[%clk
0:02:26.3]} 27... Ned5 {[%clk 0:00:22.8]} 28. Bf5 {[%clk 0:02:19]} 28... Ne2+
{[%clk 0:00:21.4]} 29. Rxe2 {[%clk 0:01:54.6]} 29... Rxe2 {[%clk 0:00:23.3]} 30.
Ne6+ {[%clk 0:01:55.7]} 30... Rxe6 {[%clk 0:00:24.5]} 31. Bxe6 {[%clk
0:01:56.6]} 31... Nf4 {[%clk 0:00:26.1]} 32. Bg4 {[%clk 0:01:49.3]} 32... Nd3
{[%clk 0:00:26.9]} 33. Rc2 {[%clk 0:01:45.2]} 33... Rxd4 {[%clk 0:00:27.1]} 34.
Rd2 {[%clk 0:01:46.3]} 34... Rd6 {[%clk 0:00:27.5]} 35. Re2 {[%clk 0:01:45.8]}
35... Kd8 {[%clk 0:00:23.7]} 36. Bh5 {[%clk 0:01:43.4]} 36... Nf4 {[%clk
0:00:20.2]} 37. Re8+ {[%clk 0:01:39.4]} 37... Kc7 {[%clk 0:00:19.9]} 38. Bg4
{[%clk 0:01:35.6]} 38... Kb6 {[%clk 0:00:14.7]} 39. Re7 {[%clk 0:01:35.1]} 39...
h5 {[%clk 0:00:15.4]} 40. Bc8 {[%clk 0:01:35.7]} 40... g5 {[%clk 0:00:15.8]} 41.
Rxb7+ {[%clk 0:01:36.3]} 41... Kc5 {[%clk 0:00:17.1]} 42. g3 {[%clk 0:01:37.2]}
42... Nd3 {[%clk 0:00:17.4]} 43. b3 {[%clk 0:01:35.1]} 43... Kd4 {[%clk
0:00:17.9]} 44. Rxa7 {[%clk 0:01:35.1]} 44... Rd5 {[%clk 0:00:19]} 45. Ra4+
{[%clk 0:01:33.2]} 45... Kc3 {[%clk 0:00:20.2]} 46. Rc4+ {[%clk 0:01:33.3]}
46... Kd2 {[%clk 0:00:21.4]} 47. Rxc6 {[%clk 0:01:32.7]} 47... Re5 {[%clk
0:00:22.5]} 48. Rxf6 {[%clk 0:01:32.8]} 48... Re1+ {[%clk 0:00:22.9]} 49. Kg2
{[%clk 0:01:32.7]} 49... Re2 {[%clk 0:00:24.8]} 50. Ba6 {[%clk 0:01:31.3]} 50...
Ne1+ {[%clk 0:00:22.8]} 51. Kf1 {[%clk 0:01:31.8]} 51... Re5 {[%clk 0:00:24]}
52. Be2 {[%clk 0:01:19.8]} 52... Rxe2 {[%clk 0:00:21.6]} 53. a4 {[%clk
0:01:11.3]} 53... Nd3 {[%clk 0:00:21.1]} 54. a5 {[%clk 0:01:09.8]} 54... Re1+
{[%clk 0:00:22.1]} 55. Kg2 {[%clk 0:01:10.5]} 55... Ra1 {[%clk 0:00:24]} 56. Rf5
{[%clk 0:01:06.2]} 56... Ne1+ {[%clk 0:00:24.6]} 57. Kh2 {[%clk 0:01:06.4]}
57... g4 {[%clk 0:00:24.9]} 58. hxg4 {[%clk 0:00:57.2]} 58... hxg4 {[%clk
0:00:25.5]} 59. f3 {[%clk 0:00:47.7]} 59... gxf3 {[%clk 0:00:24.2]} 60. g4
{[%clk 0:00:48.3]} 60... Ke2 {[%clk 0:00:23]} 61. Kg3 {[%clk 0:00:48.6]} 61...
Ra3 {[%clk 0:00:16.9]} 62. Re5+ {[%clk 0:00:32.8]} 62... Kf1 {[%clk 0:00:18]}
63. g5 {[%clk 0:00:25.6]} 63... Rxb3 {[%clk 0:00:16.2]} 64. g6 {[%clk
0:00:26.6]} 64... f2+ {[%clk 0:00:17.1]} 65. Kh2 {[%clk 0:00:26.3]} 65... Nf3+
{[%clk 0:00:17.4]} 66. Kg3 {[%clk 0:00:24.9]} 66... Nxe5+ {[%clk 0:00:19.3]} 0-1

[Event "***Titled Tuesday 3|2 Blitz"]
[Site "Chess.com"]
[Date "2017.02.07"]
[Round "8"]
[White "Blitzstream"]
[Black "Feegus"]
[Result "0-1"]
[WhiteElo "2435"]
[BlackElo "2387"]
[TimeControl "180+2"]
[EndTime "14:59:54 PST"]
[Termination "Feegus won by resignation"]

1. d4 {[%clk 0:03:02]} 1... Nf6 {[%clk 0:03:00.4]} 2. g4 {[%clk 0:03:02.5]} 2...
Nxg4 {[%clk 0:02:59.1]} 3. e4 {[%clk 0:03:03.9]} 3... d6 {[%clk 0:02:49.5]} 4.
Nc3 {[%clk 0:02:59.9]} 4... e5 {[%clk 0:02:44.9]} 5. h3 {[%clk 0:02:56.8]} 5...
Nf6 {[%clk 0:02:42.7]} 6. Nf3 {[%clk 0:02:54.8]} 6... exd4 {[%clk 0:02:40.4]} 7.
Qxd4 {[%clk 0:02:55.2]} 7... Nc6 {[%clk 0:02:38.5]} 8. Bb5 {[%clk 0:02:56]} 8...
Bd7 {[%clk 0:02:36.1]} 9. Bxc6 {[%clk 0:02:33.7]} 9... Bxc6 {[%clk 0:02:33.1]}
10. Bg5 {[%clk 0:02:35.1]} 10... h6 {[%clk 0:02:28.3]} 11. Bh4 {[%clk 0:02:36]}
11... g5 {[%clk 0:02:25.9]} 12. Bg3 {[%clk 0:02:37]} 12... Bg7 {[%clk
0:02:24.2]} 13. O-O-O {[%clk 0:02:36.7]} 13... O-O {[%clk 0:02:22.2]} 14. Qc4
{[%clk 0:02:24]} 14... Nd7 {[%clk 0:02:09.7]} 15. h4 {[%clk 0:02:22.2]} 15... g4
{[%clk 0:02:06.2]} 16. Nd4 {[%clk 0:02:22.9]} 16... Nb6 {[%clk 0:02:03.7]} 17.
Qe2 {[%clk 0:02:18.8]} 17... Bd7 {[%clk 0:02:04.9]} 18. f3 {[%clk 0:02:09.6]}
18... h5 {[%clk 0:02:05.9]} 19. Rhg1 {[%clk 0:02:05.3]} 19... Qf6 {[%clk
0:02:02.2]} 20. Kb1 {[%clk 0:01:45.4]} 20... Rae8 {[%clk 0:01:59.2]} 21. Bf2
{[%clk 0:01:32.2]} 21... c5 {[%clk 0:01:50.4]} 22. Nb3 {[%clk 0:01:32.1]} 22...
gxf3 {[%clk 0:01:47.5]} 23. Qd2 {[%clk 0:01:29.3]} 23... Bg4 {[%clk 0:01:32.7]}
24. Qxd6 {[%clk 0:01:10.2]} 24... Qxd6 {[%clk 0:01:33.3]} 25. Rxd6 {[%clk
0:01:12.1]} 25... Nc4 {[%clk 0:01:35.2]} 26. Rd5 {[%clk 0:01:03.7]} 26... b6
{[%clk 0:01:14.8]} 27. Nc1 {[%clk 0:00:52]} 27... Rd8 {[%clk 0:00:56.2]} 28. Nd3
{[%clk 0:00:39.5]} 28... Nd2+ {[%clk 0:00:49.7]} 29. Kc1 {[%clk 0:00:34.7]}
29... Nxe4 {[%clk 0:00:38.3]} 30. Rxd8 {[%clk 0:00:33.8]} 30... Bh6+ {[%clk
0:00:38.7]} 31. Kb1 {[%clk 0:00:31.3]} 31... Nxc3+ {[%clk 0:00:40]} 32. bxc3
{[%clk 0:00:32]} 32... Rxd8 {[%clk 0:00:41.9]} 33. Ne5 {[%clk 0:00:31.3]} 33...
f5 {[%clk 0:00:39.8]} 34. Nxf3 {[%clk 0:00:31.1]} 34... Kf7 {[%clk 0:00:35.9]}
35. Ne5+ {[%clk 0:00:31]} 35... Kf6 {[%clk 0:00:33.4]} 36. Nc6 {[%clk
0:00:28.7]} 36... Rd7 {[%clk 0:00:31.4]} 37. Re1 {[%clk 0:00:27.4]} 37... f4
{[%clk 0:00:20.1]} 38. Re8 {[%clk 0:00:20.8]} 38... f3 {[%clk 0:00:19.2]} 39.
Rh8 {[%clk 0:00:17.4]} 39... Bg7 {[%clk 0:00:19.8]} 40. Re8 {[%clk 0:00:15.8]}
40... Kf7 {[%clk 0:00:20.7]} 41. Re1 {[%clk 0:00:14.1]} 41... Bxc3 {[%clk
0:00:21.5]} 42. Rf1 {[%clk 0:00:14.4]} 42... Bh3 {[%clk 0:00:21.8]} 43. Rg1
{[%clk 0:00:14.7]} 43... Bg2 {[%clk 0:00:23.1]} 44. a4 {[%clk 0:00:13.1]} 44...
Rc7 {[%clk 0:00:24.1]} 45. Nb8 {[%clk 0:00:11.4]} 45... Ke6 {[%clk 0:00:20.9]}
46. Ka2 {[%clk 0:00:11.9]} 46... Kd5 {[%clk 0:00:21.4]} 47. Kb3 {[%clk
0:00:13.2]} 47... Bd4 {[%clk 0:00:21.3]} 48. Rd1 {[%clk 0:00:14.3]} 48... Ke4
{[%clk 0:00:21.9]} 49. Bg3 {[%clk 0:00:14.8]} 49... Rb7 {[%clk 0:00:19.1]} 50.
Nc6 {[%clk 0:00:15.1]} 50... f2 {[%clk 0:00:19.8]} 51. Bxf2 {[%clk 0:00:09.2]}
51... Bxf2 {[%clk 0:00:19.1]} 52. Rd8 {[%clk 0:00:08.7]} 52... Kf4 {[%clk
0:00:18.2]} 53. Nb8 {[%clk 0:00:03.7]} 53... Bxh4 {[%clk 0:00:16.4]} 54. Rf8+
{[%clk 0:00:04.2]} 54... Kg3 {[%clk 0:00:16.8]} 55. Kc4 {[%clk 0:00:05.9]} 55...
Bg5 {[%clk 0:00:13.1]} 56. Rg8 {[%clk 0:00:04.9]} 56... Kg4 {[%clk 0:00:13.3]}
57. Kb5 {[%clk 0:00:05.7]} 57... h4 {[%clk 0:00:14.2]} 58. Ka6 {[%clk
0:00:07.1]} 58... h3 {[%clk 0:00:14.9]} 59. a5 {[%clk 0:00:08.4]} 59... h2
{[%clk 0:00:15.8]} 60. Rh8 {[%clk 0:00:09.6]} 60... Rxb8 {[%clk 0:00:16.6]} 61.
Rxh2 {[%clk 0:00:08.8]} 61... bxa5 {[%clk 0:00:17.4]} 62. c4 {[%clk 0:00:09.3]}
62... Kg3 {[%clk 0:00:16.7]} 63. Rh7 {[%clk 0:00:10]} 63... Rb4 {[%clk
0:00:15.3]} 64. Rg7 {[%clk 0:00:09.4]} 64... Kg4 {[%clk 0:00:15.6]} 65. Rxa7
{[%clk 0:00:09.9]} 65... Rxc4 {[%clk 0:00:16.7]} 66. Kb5 {[%clk 0:00:11.8]}
66... Rc1 {[%clk 0:00:17.6]} 67. Rxa5 {[%clk 0:00:12.6]} 67... Bf1+ {[%clk
0:00:17.5]} 68. Kc6 {[%clk 0:00:12.4]} 68... c4 {[%clk 0:00:18.4]} 69. Kd5
{[%clk 0:00:13.7]} 69... c3 {[%clk 0:00:19.4]} 70. Ra4+ {[%clk 0:00:14.7]} 70...
Kf3 {[%clk 0:00:19.5]} 71. Kd4 {[%clk 0:00:16.2]} 71... Be3+ {[%clk 0:00:19.8]}
72. Kd5 {[%clk 0:00:15.1]} 72... Rd1+ {[%clk 0:00:20.1]} 73. Ke5 {[%clk
0:00:14.7]} 73... c2 {[%clk 0:00:21.6]} 74. Ra2 {[%clk 0:00:14.6]} 0-1

[Event "***Titled Tuesday 3|2 Blitz"]
[Site "Chess.com"]
[Date "2017.02.07"]
[Round "8"]
[White "MateusViageiro"]
[Black "Wolverine_master"]
[Result "1-0"]
[WhiteElo "2412"]
[BlackElo "1973"]
[TimeControl "180+2"]
[EndTime "15:00:10 PST"]
[Termination "MateusViageiro won by resignation"]

1. Nf3 {[%clk 0:03:01.9]} 1... Nf6 {[%clk 0:02:58.5]} 2. d4 {[%clk 0:03:02.1]}
2... d5 {[%clk 0:02:56.9]} 3. g3 {[%clk 0:03:02.8]} 3... e6 {[%clk 0:02:57.1]}
4. Bg2 {[%clk 0:03:03.6]} 4... Be7 {[%clk 0:02:59]} 5. O-O {[%clk 0:03:04.3]}
5... O-O {[%clk 0:03:00.4]} 6. Nbd2 {[%clk 0:03:05.8]} 6... c5 {[%clk
0:02:49.5]} 7. c4 {[%clk 0:03:05.7]} 7... Nc6 {[%clk 0:02:49.5]} 8. e3 {[%clk
0:03:05.4]} 8... b6 {[%clk 0:02:45]} 9. b3 {[%clk 0:03:05.3]} 9... Ba6 {[%clk
0:02:44.2]} 10. Bb2 {[%clk 0:03:02.4]} 10... Rc8 {[%clk 0:02:44.1]} 11. Rc1
{[%clk 0:03:02.2]} 11... Nb4 {[%clk 0:02:33.4]} 12. dxc5 {[%clk 0:02:43.1]}
12... bxc5 {[%clk 0:02:17.2]} 13. a3 {[%clk 0:02:32.4]} 13... Nd3 {[%clk
0:02:08.5]} 14. Bxf6 {[%clk 0:02:32.7]} 14... Bxf6 {[%clk 0:02:06.5]} 15. Rb1
{[%clk 0:02:33.4]} 15... dxc4 {[%clk 0:01:59.2]} 16. Nxc4 {[%clk 0:02:30.8]}
16... Bxc4 {[%clk 0:01:57.9]} 17. bxc4 {[%clk 0:02:31.4]} 17... Ne5 {[%clk
0:01:47.2]} 18. Nxe5 {[%clk 0:02:26.1]} 18... Bxe5 {[%clk 0:01:47.1]} 19. Rb7
{[%clk 0:02:24.8]} 19... Qa5 {[%clk 0:01:44.7]} 20. Qb3 {[%clk 0:02:22.7]} 20...
g6 {[%clk 0:01:31.8]} 21. h4 {[%clk 0:02:15]} 21... Rb8 {[%clk 0:01:26.6]} 22.
Rb5 {[%clk 0:02:07.6]} 22... Rxb5 {[%clk 0:01:03.4]} 23. cxb5 {[%clk 0:02:07.4]}
23... Rb8 {[%clk 0:01:04]} 24. Rb1 {[%clk 0:02:02.3]} 24... h5 {[%clk 0:00:28]}
25. a4 {[%clk 0:02:01.1]} 25... Qc3 {[%clk 0:00:25.2]} 26. Qxc3 {[%clk
0:01:56.6]} 26... Bxc3 {[%clk 0:00:25.5]} 27. Rc1 {[%clk 0:01:57.2]} 27... Bb4
{[%clk 0:00:25.8]} 28. Rd1 {[%clk 0:01:55.8]} 28... c4 {[%clk 0:00:16.4]} 29.
Rd4 {[%clk 0:01:52.1]} 29... Rc8 {[%clk 0:00:13.9]} 30. Bc6 {[%clk 0:01:51.5]}
30... Ba5 {[%clk 0:00:11]} 31. Rxc4 {[%clk 0:01:52.2]} 31... Kg7 {[%clk
0:00:11.8]} 32. Kg2 {[%clk 0:01:52.4]} 32... Rd8 {[%clk 0:00:11.2]} 33. Rc2
{[%clk 0:01:44.4]} 33... Rd1 {[%clk 0:00:10.3]} 34. Bf3 {[%clk 0:01:39.8]} 34...
Ra1 {[%clk 0:00:10.4]} 35. Bc6 {[%clk 0:01:36]} 35... Bb6 {[%clk 0:00:06]} 36.
Rc4 {[%clk 0:01:34.2]} 36... Ra2 {[%clk 0:00:06.6]} 37. Kf3 {[%clk 0:01:34.2]}
37... Ba5 {[%clk 0:00:07.2]} 38. Be4 {[%clk 0:01:24.6]} 38... Be1 {[%clk
0:00:07.4]} 39. Bc2 {[%clk 0:01:25.2]} 39... Ba5 {[%clk 0:00:05.2]} 40. Ke2
{[%clk 0:01:22.4]} 40... Bb6 {[%clk 0:00:05.6]} 41. Kf3 {[%clk 0:01:17.5]} 41...
Ra1 {[%clk 0:00:06.1]} 42. Be4 {[%clk 0:01:13.3]} 42... Ba5 {[%clk 0:00:06.2]}
43. Bc6 {[%clk 0:01:10.5]} 43... Rf1 {[%clk 0:00:03.8]} 44. Kg2 {[%clk
0:01:06.3]} 44... Ra1 {[%clk 0:00:04.6]} 45. Rf4 {[%clk 0:01:05.4]} 45... Ra2
{[%clk 0:00:04.7]} 46. Be8 {[%clk 0:01:02.6]} 46... f5 {[%clk 0:00:04.9]} 47.
Bd7 {[%clk 0:00:50.2]} 47... e5 {[%clk 0:00:05.1]} 48. Rf3 {[%clk 0:00:48.3]}
48... Bb6 {[%clk 0:00:04.2]} 49. Bxf5 {[%clk 0:00:37.8]} 49... gxf5 {[%clk
0:00:04.7]} 50. Rxf5 {[%clk 0:00:39]} 50... Rxa4 {[%clk 0:00:05.5]} 51. Rxe5
{[%clk 0:00:37.2]} 51... Kh6 {[%clk 0:00:06.1]} 52. Re6+ {[%clk 0:00:37.9]}
52... Kg7 {[%clk 0:00:06.2]} 53. Re5 {[%clk 0:00:39.2]} 53... Kh6 {[%clk
0:00:06.9]} 54. Kf3 {[%clk 0:00:40.2]} 54... Rb4 {[%clk 0:00:06.7]} 55. Rg5
{[%clk 0:00:40.3]} 55... Bd8 {[%clk 0:00:07.1]} 56. Rd5 {[%clk 0:00:40.3]} 56...
Bb6 {[%clk 0:00:08.1]} 57. Re5 {[%clk 0:00:40.8]} 57... Bc7 {[%clk 0:00:07.1]}
58. Re7 {[%clk 0:00:40.6]} 58... Bb6 {[%clk 0:00:07.3]} 59. Re5 {[%clk
0:00:41.6]} 59... Rb2 {[%clk 0:00:07.3]} 60. Rd5 {[%clk 0:00:39.7]} 60... Kg6
{[%clk 0:00:07.7]} 61. Rg5+ {[%clk 0:00:39.9]} 61... Kh6 {[%clk 0:00:08.4]} 62.
Re5 {[%clk 0:00:41.4]} 62... Kg6 {[%clk 0:00:09.1]} 63. Kg2 {[%clk 0:00:42.5]}
63... Kh7 {[%clk 0:00:08.4]} 64. Rxh5+ {[%clk 0:00:42.6]} 64... Kg6 {[%clk
0:00:08.7]} 65. Rg5+ {[%clk 0:00:43.2]} 65... Kf6 {[%clk 0:00:09.7]} 66. Kf3
{[%clk 0:00:44.5]} 66... Rb4 {[%clk 0:00:08.3]} 67. g4 {[%clk 0:00:44.7]} 67...
Kf7 {[%clk 0:00:07.8]} 68. Rf5+ {[%clk 0:00:45.8]} 68... Kg6 {[%clk 0:00:08.6]}
69. h5+ {[%clk 0:00:47]} 69... Kh6 {[%clk 0:00:09.3]} 70. Rf6+ {[%clk 0:00:48]}
70... Kg5 {[%clk 0:00:09.5]} 71. Rg6+ {[%clk 0:00:47.7]} 71... Kh4 {[%clk
0:00:09.8]} 72. h6 {[%clk 0:00:48.9]} 72... Rb3 {[%clk 0:00:05.4]} 73. h7 {[%clk
0:00:49.1]} 73... Bd4 {[%clk 0:00:06.4]} 74. Rh6+ {[%clk 0:00:47.6]} 74... Kg5
{[%clk 0:00:07]} 75. h8=Q {[%clk 0:00:49.5]} 75... Bxh8 {[%clk 0:00:08.7]} 76.
Rxh8 {[%clk 0:00:50.6]} 76... Rxb5 {[%clk 0:00:10.6]} 77. Rh5+ {[%clk
0:00:51.7]} 1-0